fUSD/lending_fUSD_20240204
["ID","MTS","AMOUNT","RATE_DAILY","PERIOD"]
[313286849,1707088237542,-60.02931507,0.00022572,2]
[313286850,1707088237554,-315.19030927,0.00022572,2]
[313286851,1707088237566,-124.78037566,0.00022572,2]
[313286852,1707088237576,-419.61496224,0.00022572,2]
[313286853,1707088237589,-80.38503776,0.00022572,2]
[313286854,1707088237599,-424.20212651,0.00022572,2]
[313286855,1707088237611,-75.79787349,0.00022572,2]
[313286856,1707088237622,-500.0,0.00022572,2]
[313286857,1707088237632,-22.99863294,0.00022572,2]
[313286858,1707088237673,-405.4670116,0.00022572,2]
[313286859,1707088237685,-71.53435546,0.00022572,2]
[313286860,1707088237794,-500.0,0.00022572,2]
[313286861,1707088237824,-500.0,0.00022572,2]
[313286862,1707088237834,-500.0,0.00022572,2]
[313286863,1707088237843,-500.0,0.00022572,2]
[313286864,1707088237853,-500.0,0.00022572,2]
[313286865,1707088237862,-500.0,0.00022572,2]
[313286867,1707088237872,-500.0,0.00022572,2]
[313286868,1707088237882,-500.0,0.00022572,2]
[313286869,1707088237894,-329.5515281,0.00022572,2]
[313286870,1707088237906,-170.4484719,0.00022572,2]
[313286871,1707088237915,-500.0,0.00022572,2]
[313286872,1707088237924,-500.0,0.00022572,2]
[313286873,1707088237934,-500.0,0.00022572,2]
[313286874,1707088237943,-500.0,0.00022572,2]
[313286875,1707088237952,-500.0,0.00022572,2]
[313286876,1707088237962,-500.0,0.00022572,2]
[313286877,1707088237972,-500.0,0.00022572,2]
[313286878,1707088237981,-500.0,0.00022572,2]
[313286879,1707088237992,-500.0,0.00022572,2]
[313286880,1707088238003,-500.0,0.00022572,2]
[313286881,1707088238013,-500.0,0.00022572,2]
[313286882,1707088238023,-500.0,0.00022572,2]
[313286883,1707088238035,-500.0,0.00022572,2]
[313286884,1707088238046,-500.0,0.00022572,2]
[313286885,1707088238056,-500.0,0.00022572,2]
[313286886,1707088238067,-500.0,0.00022572,2]
[313286887,1707088238077,-500.0,0.00022572,2]
[313286888,1707088238087,-500.0,0.00022572,2]
[313286889,1707088238097,-212.6596481,0.00022572,2]
[313286890,1707088238107,-500.0,0.00022572,2]
[313286891,1707088238117,-500.0,0.00022572,2]
[313286892,1707088238127,-500.0,0.00022572,2]
[313286893,1707088238137,-500.0,0.00022572,2]
[313286894,1707088238148,-500.0,0.00022572,2]
[313286895,1707088238157,-500.0,0.00022572,2]
[313286896,1707088238166,-500.0,0.00022572,2]
[313286897,1707088238175,-500.0,0.00022572,2]
[313286898,1707088238184,-500.0,0.00022572,2]
[313286899,1707088238202,-500.0,0.00022572,2]
[313286900,1707088238213,-500.0,0.00022572,2]
[313286901,1707088238223,-500.0,0.00022572,2]
[313286902,1707088238232,-500.0,0.00022572,2]
[313286903,1707088238241,-500.0,0.00022572,2]
[313286904,1707088238251,-500.0,0.00022572,2]
[313286905,1707088238260,-500.0,0.00022572,2]
[313286906,1707088238270,-500.0,0.00022572,2]
[313286907,1707088238280,-500.0,0.00022572,2]
[313286908,1707088238289,-500.0,0.00022572,2]
[313286909,1707088238298,-500.0,0.00022572,2]
[313286910,1707088238307,-500.0,0.00022572,2]
[313286911,1707088238317,-500.0,0.00022572,2]
[313286912,1707088238327,-500.0,0.00022572,2]
[313286913,1707088238336,-500.0,0.00022572,2]
[313286914,1707088238345,-500.0,0.00022572,2]
[313286915,1707088238354,-500.0,0.00022572,2]
[313286916,1707088238365,-500.0,0.00022572,2]
[313286917,1707088238377,-500.0,0.00022572,2]
[313286918,1707088238386,-500.0,0.00022572,2]
[313286919,1707088238396,-500.0,0.00022572,2]
[313286920,1707088238407,-500.0,0.00022572,2]
[313286921,1707088238418,-500.0,0.00022572,2]
[313286922,1707088238428,-484.88716451,0.00022572,2]
[313286923,1707088238439,-500.0,0.00022572,2]
[313286924,1707088238450,-500.0,0.00022572,2]
[313286925,1707088238460,-500.0,0.00022572,2]
[313286926,1707088238471,-500.0,0.00022572,2]
[313286927,1707088238481,-500.0,0.00022572,2]
[313286928,1707088238490,-238041.53721963,0.00022573,2]
[313286929,1707088238615,-51966.942506,0.00022573,2]
[313286930,1707088238628,-24845.0033405,0.00022573,2]
[313286931,1707088238640,-48999.5751412,0.00022573,2]
[313286932,1707088238653,-32799.67970771,0.00022573,2]
[313286933,1707088238665,-1503.90331392,0.00022576,2]
[313286934,1707088238676,-175281.18008292,0.0002258,2]
[313286935,1707088238731,-403.09841461,0.0002258,2]
[313286936,1707088238745,-4755.63298702,0.0002258,2]
[313286937,1707088238759,-15441.82381545,0.0002258,2]
[313286938,1707088238770,-612.0433,0.00022585,2]
[313286939,1707088238780,-158.1246768,0.00022585,2]
[313286940,1707088238790,-4695.898,0.00022587,2]
[313286941,1707088238801,-182.48395622,0.00022598,2]
[313286942,1707088238812,-3935.36927606,0.000226,2]
[313286943,1707088238822,-178.02648423,0.000226,2]
[313286944,1707088238832,-600.0,0.000226,8]
[313286945,1707088238843,-158.1246768,0.00022612,2]
[313286946,1707088238853,-158.1246768,0.00022638,2]
[313286947,1707088238863,-158.1246768,0.00022665,2]
[313286948,1707088238877,-218.39209122,0.00022674,2]
[313286949,1707088238889,-518.79,0.00022684,2]
[313286950,1707088238898,-1095.68935283,0.00022688,2]
[313286951,1707088238908,-158.1246768,0.00022691,2]
[313286952,1707088238918,-155.0,0.00022696,2]
[313286953,1707088238928,-822.20820318,0.00022697,2]
[313286954,1707088238939,-181.43729233,0.00022697,2]
[313286955,1707088238960,-2788.82514314,0.00022697,2]
[313286956,1707088238979,-158.69334098,0.00022697,2]
[313286957,1707088238995,-413.06464927,0.00022697,2]
[313286958,1707088239008,-155.0,0.00022697,2]
[313286959,1707088239022,-342.68960484,0.00022699,2]
[313286960,1707088239036,-500.0,0.00022699,2]
[313286961,1707088239049,-500.0,0.00022699,2]
[313286962,1707088239064,-248.07374907,0.00022699,2]
[313286963,1707088239078,-616.68294029,0.00022699,2]
[313286964,1707088239091,-500.0,0.00022699,2]
[313286965,1707088239102,-500.0,0.00022699,2]
[313286966,1707088239116,-446.88403832,0.00022699,2]
[313286967,1707088239130,-425.04080134,0.00022699,2]
[313286968,1707088239142,-393.49433292,0.00022699,2]
[313286969,1707088239157,-600.2693249,0.00022699,2]
[313286970,1707088239173,-500.0,0.00022699,2]
[313286971,1707088239183,-645.10379269,0.00022699,2]
[313286972,1707088239197,-245.37298282,0.00022699,2]
[313286973,1707088239214,-500.0,0.00022699,2]
[313286974,1707088239228,-500.0,0.00022699,2]
[313286975,1707088239245,-500.0,0.00022699,2]
[313286976,1707088239259,-500.0,0.00022699,2]
[313286977,1707088239272,-500.0,0.00022699,2]
[313286978,1707088239287,-500.0,0.00022699,2]
[313286979,1707088239300,-301.87110782,0.00022699,2]
[313286980,1707088239316,-52781.11902369,0.000227,2]
[313286981,1707088239337,-10421.3981924,0.000227,2]
[313286982,1707088239353,-5136.62864425,0.000227,2]
[313286983,1707088240047,-1151.637444,0.000227,2]
[313286984,1707088240062,-30163.0,0.000227,2]
[313286985,1707088240747,-45292.44527389,0.000227,2]
[313286986,1707088240799,-21343.602,0.000227,2]
[313286987,1707088240814,-31217.08109323,0.000227,2]
[313286988,1707088240828,-550.0,0.000227,2]
[313287006,1707088242418,-1606.2869616,0.000227,2]
[313287008,1707088242430,-51357.25086694,0.000227,2]
[313287009,1707088242439,-1200.0,0.000227,8]
[313287010,1707088242448,-205.0,0.00022705,2]
[313287011,1707088242458,-47909.0,0.00022712,2]
[313287012,1707088242467,-158.1246768,0.00022718,2]
[313287013,1707088242476,-155.32,0.00022729,2]
[313287014,1707088242485,-158.1246768,0.00022744,2]
[313287015,1707088242494,-158.1246768,0.00022771,2]
[313287016,1707088242503,-234.50069741,0.00022777,2]
[313287017,1707088242513,-158.1246768,0.00022797,2]
[313287018,1707088242522,-1800.0,0.000228,8]
[313287019,1707088242531,-39241.2913362,0.000229,2]
[313287020,1707088242540,-4627.9433,0.000229,2]
[313287021,1707088242549,-153.27076871,0.000229,2]
[313287022,1707088242558,-165.62254498,0.000229,2]
[313287023,1707088242567,-407.73930706,0.000229,6]
[313287024,1707088242576,-2500.0,0.000229,8]
[313287025,1707088242585,-155.32,0.00022918,2]
[313287026,1707088242594,-191.24522111,0.0002299,2]
[313287027,1707088242604,-732949.34510283,0.00023,2]
[313287028,1707088242613,-158.46,0.00023,2]
[313287029,1707088242622,-1135.32,0.00023258,2]
[313287030,1707088242632,-518.79,0.00023764,2]
[313287031,1707088242641,-666.39,0.00024238,2]
[313287032,1707088242651,-360.0,0.00024321,2]
[313287033,1707088242660,-712.0,0.0002433,2]
[313287034,1707088242669,-1076.52,0.00024384,2]
[313287035,1707088242679,-258.38,0.00024384,2]
[313287036,1707088242687,-21983.85892145,0.00024569,2]
[313287037,1707088242697,-3935.36927603,0.0002458,2]
[313287038,1707088242706,-250.0,0.00024658,2]
[313287039,1707088242715,-518.79,0.00024844,2]
[313287040,1707088242724,-1135.32,0.00024902,2]
[313287041,1707088242733,-656.91917156,0.00025,7]
[313287042,1707088242742,-1250.0,0.00025,3]
[313287043,1707088242752,-205.0,0.00025574,6]
[313287044,1707088242761,-1503.90331389,0.00025691,2]
[313287045,1707088242770,-795.0,0.00025805,2]
[313287046,1707088242780,-518.79,0.00025925,2]
[313287047,1707088242789,-150.0,0.00026079,2]
[313287048,1707088242798,-666.39,0.00026502,2]
[313287050,1707088242807,-1135.32,0.00026546,2]
[313287052,1707088242816,-3935.36927603,0.0002656,2]
[313287054,1707088242825,-1300.0,0.00027,3]
[313287056,1707088242834,-360.0,0.00027024,2]
[313287058,1707088242843,-712.0,0.00027033,2]
[313287059,1707088242852,-173.387,0.00027865,2]
[313287060,1707088242860,-516.806,0.00027865,2]
[313287061,1707088242870,-368.0,0.00027865,2]
[313287062,1707088242880,-1862.0,0.00027865,2]
[313287063,1707088242892,-851.0,0.00027865,2]
[313287064,1707088242901,-950.0,0.00027865,2]
[313287065,1707088242910,-2867.0,0.00027865,2]
[313287066,1707088242919,-1232.0,0.00027865,2]
[313287067,1707088242928,-194.971,0.00027865,2]
[313287068,1707088242937,-1250.0,0.00027865,2]
[313287069,1707088242946,-215.0,0.00027865,2]
[313287070,1707088242955,-236.0,0.00027865,2]
[313287071,1707088242964,-428.0,0.00027865,2]
[313287072,1707088242975,-499.673,0.00027865,2]
[313287073,1707088242986,-1001.0,0.00027865,2]
[313287074,1707088242994,-1941.0,0.00027865,2]
[313287075,1707088243004,-1138.0,0.00027865,2]
[313287076,1707088243013,-861.999,0.00027865,2]
[313287077,1707088243022,-320.0,0.00027865,2]
[313287078,1707088243032,-252.942,0.00027865,2]
[313287079,1707088243042,-342.0,0.00027865,2]
[313287080,1707088243051,-4193.0,0.00027865,2]
[313287081,1707088243062,-19779.0,0.00027865,2]
[313287082,1707088243071,-8133.0,0.00027865,2]
[313287083,1707088243080,-7386.0,0.00027865,2]
[313287084,1707088243089,-2282.0,0.00027865,2]
[313287085,1707088243098,-2916.0,0.00027865,2]
[313287086,1707088243107,-1051.425,0.00027865,2]
[313287087,1707088243117,-1135.32,0.0002819,2]
[313287088,1707088243127,-407.73930706,0.0002827,14]
[313287089,1707088243137,-205.0,0.00028443,10]
[313287090,1707088243146,-3935.36927603,0.0002854,2]
[313287091,1707088243155,-666.39,0.00028766,2]
[313287092,1707088243166,-1503.90331389,0.00028806,4]
[313287093,1707088243176,-1026.39533164,0.00028813,2]
[313287094,1707088243188,-10000.0,0.00028931,2]
[313287095,1707088243198,-1350.0,0.00029,3]
[313287096,1707088243208,-491.0,0.00029,2]
[313287097,1707088243218,-166.322826,0.00029094,4]
[313287098,1707088243227,-150.0,0.00029184,2]
[313287099,1707088243236,-2000.0,0.0002919,3]
[313287100,1707088243245,-155.25821832,0.00029196,2]
[313287101,1707088243255,-151.09684366,0.00029196,2]
[313287102,1707088243264,-150.0,0.00029212,2]
[313287103,1707088243273,-1026.39533164,0.00029213,2]
[313287104,1707088243282,-150.0,0.00029216,2]
[313287105,1707088243292,-842.5370952,0.00029216,2]
[313287106,1707088243301,-150.0,0.00029217,2]
[313287107,1707088243311,-150.0,0.0002922,2]
[313287108,1707088243320,-300.0,0.00029221,2]
[313287109,1707088243332,-150.0,0.00029224,2]
[313287110,1707088243341,-150.0,0.00029224,2]
[313287111,1707088243351,-150.0,0.00029225,2]
[313287112,1707088243360,-150.0,0.00029228,2]
[313287113,1707088243369,-150.0,0.00029233,2]
[313287114,1707088243380,-150.0,0.00029241,2]
[313287115,1707088243389,-150.0,0.00029245,2]
[313287116,1707088243398,-150.0,0.00029247,2]
[313287117,1707088243406,-150.0,0.00029247,2]
[313287118,1707088243416,-150.0,0.0002925,2]
[313287119,1707088243425,-150.0,0.00029254,2]
[313287120,1707088243436,-300.0,0.00029254,2]
[313287121,1707088243445,-1500.0,0.00029259,2]
[313287122,1707088243455,-150.0,0.0002926,2]
[313287123,1707088243465,-150.0,0.00029262,2]
[313287124,1707088243474,-150.0,0.00029262,2]
[313287125,1707088243485,-150.0,0.00029264,2]
[313287126,1707088243494,-150.0,0.00029265,2]
[313287127,1707088243505,-150.0,0.00029265,2]
[313287128,1707088243514,-150.0,0.00029269,2]
[313287129,1707088243524,-150.0,0.0002927,2]
[313287130,1707088243534,-150.0,0.00029278,2]
[313287131,1707088243545,-150.0,0.00029279,2]
[313287132,1707088243554,-150.0,0.00029287,2]
[313287133,1707088243563,-150.0,0.00029288,2]
[313287134,1707088243573,-150.0,0.00029289,2]
[313287135,1707088243582,-150.0,0.0002929,2]
[313287136,1707088243593,-150.0,0.0002929,2]
[313287137,1707088243603,-150.0,0.00029291,2]
[313287138,1707088243613,-1173.07124027,0.00029291,2]
[313287139,1707088243622,-150.0,0.00029292,2]
[313287140,1707088243632,-150.0,0.00029292,2]
[313287141,1707088243641,-150.0,0.00029292,2]
[313287142,1707088243651,-150.0,0.00029304,2]
[313287143,1707088243660,-150.0,0.00029316,2]
[313287144,1707088243671,-1500.0,0.00029316,2]
[313287145,1707088243679,-1500.0,0.00029317,2]
[313287146,1707088243689,-1500.0,0.00029325,2]
[313287147,1707088243700,-709.62,0.00029326,2]
[313287148,1707088243710,-150.0,0.00029326,2]
[313287149,1707088243719,-150.0,0.00029329,2]
[313287150,1707088243728,-300.0,0.00029336,2]
[313287151,1707088243738,-150.0,0.00029338,2]
[313287152,1707088243747,-150.0,0.00029341,2]
[313287153,1707088243757,-1500.0,0.00029341,2]
[313287154,1707088243767,-234.63597224,0.00029343,2]
[313287155,1707088243777,-150.0,0.00029344,2]
[313287156,1707088243787,-150.0,0.00029346,2]
[313287157,1707088243797,-300.0,0.00029346,2]
[313287158,1707088243806,-150.0,0.0002935,2]
[313287159,1707088243818,-150.0,0.00029351,2]
[313287160,1707088243829,-150.0,0.00029353,2]
[313287161,1707088243839,-300.0,0.00029355,2]
[313287162,1707088243849,-150.0,0.00029355,2]
[313287163,1707088243860,-150.0,0.00029356,2]
[313287164,1707088243870,-150.0,0.00029359,2]
[313287165,1707088243880,-150.0,0.00029359,2]
[313287166,1707088243891,-150.0,0.00029359,2]
[313287167,1707088243903,-150.0,0.00029359,2]
[313287168,1707088243914,-150.0,0.00029359,2]
[313287169,1707088243925,-150.0,0.0002936,2]
[313287170,1707088243935,-150.0,0.00029361,2]
[313287171,1707088243944,-150.0,0.00029361,2]
[313287172,1707088243955,-150.0,0.00029361,2]
[313287173,1707088243966,-150.0,0.00029365,2]
[313287174,1707088243976,-150.0,0.00029366,2]
[313287175,1707088243985,-150.0,0.00029367,2]
[313287176,1707088243998,-1500.0,0.00029372,2]
[313287177,1707088244008,-150.0,0.00029372,2]
[313287178,1707088244018,-150.0,0.00029373,2]
[313287179,1707088244030,-150.0,0.00029379,2]
[313287180,1707088244039,-150.0,0.0002938,2]
[313287181,1707088244048,-150.0,0.0002938,2]
[313287182,1707088244057,-150.0,0.00029381,2]
[313287183,1707088244068,-338.23569729,0.00029388,2]
[313287184,1707088244079,-660.18732474,0.00029388,2]
[313287185,1707088244091,-4121.98612024,0.00029388,2]
[313287186,1707088244103,-430.44997415,0.00029389,2]
[313287187,1707088244113,-150.0,0.00029389,2]
[313287188,1707088244123,-2000.0,0.0002939,2]
[313287189,1707088244133,-200.0,0.0002939,2]
[313287190,1707088244142,-2000.0,0.0002939,2]
[313287191,1707088244151,-200.0,0.0002939,2]
[313287192,1707088244160,-300.0,0.0002939,2]
[313287193,1707088244169,-300.0,0.0002939,2]
[313287194,1707088244179,-300.0,0.0002939,2]
[313287195,1707088244188,-300.0,0.0002939,2]
[313287196,1707088244198,-300.0,0.0002939,2]
[313287197,1707088244207,-300.0,0.0002939,2]
[313287198,1707088244218,-300.0,0.0002939,2]
[313287199,1707088244228,-1500.0,0.0002939,2]
[313287200,1707088244237,-150.0,0.00029391,2]
[313287201,1707088244246,-150.0,0.00029394,2]
[313287202,1707088244255,-1500.0,0.00029396,2]
[313287203,1707088244265,-150.0,0.00029399,2]
[313287204,1707088244274,-300.0,0.000294,2]
[313287205,1707088244284,-150.0,0.00029402,2]
[313287206,1707088244292,-150.0,0.00029402,2]
[313287207,1707088244302,-150.0,0.00029404,2]
[313287208,1707088244311,-400.59913355,0.00029404,2]
[313287209,1707088244322,-244.19440529,0.00029405,2]
[313287210,1707088244332,-150.0,0.00029405,2]
[313287211,1707088244341,-150.0,0.00029411,2]
[313287212,1707088244353,-150.0,0.00029411,2]
[313287213,1707088244364,-150.0,0.00029416,2]
[313287214,1707088244374,-150.0,0.00029417,2]
[313287215,1707088244384,-1500.0,0.00029418,2]
[313287216,1707088244394,-150.0,0.00029419,2]
[313287217,1707088244404,-1500.0,0.0002942,2]
[313287218,1707088244413,-150.0,0.00029423,2]
[313287219,1707088244423,-150.0,0.00029426,2]
[313287220,1707088244433,-150.0,0.00029428,2]
[313287221,1707088244443,-150.0,0.00029438,2]
[313287222,1707088244453,-1500.0,0.00029439,2]
[313287223,1707088244463,-150.0,0.00029441,2]
[313287224,1707088244474,-150.0,0.00029441,2]
[313287225,1707088244483,-1500.0,0.00029441,2]
[313287226,1707088244494,-300.0,0.00029442,2]
[313287227,1707088244503,-150.0,0.00029444,2]
[313287228,1707088244512,-150.0,0.00029445,2]
[313287229,1707088244522,-150.0,0.00029445,2]
[313287230,1707088244531,-150.0,0.00029445,2]
[313287231,1707088244540,-300.0,0.00029445,2]
[313287232,1707088244549,-150.0,0.00029447,2]
[313287233,1707088244559,-300.0,0.00029449,2]
[313287234,1707088244568,-150.0,0.00029449,2]
[313287235,1707088244577,-150.0,0.0002945,2]
[313287236,1707088244586,-150.0,0.00029451,2]
[313287237,1707088244595,-150.0,0.00029456,2]
[313287238,1707088244604,-150.0,0.00029461,2]
[313287239,1707088244613,-150.0,0.00029462,2]
[313287240,1707088244622,-150.0,0.00029463,2]
[313287241,1707088244632,-150.0,0.00029463,2]
[313287242,1707088244641,-1500.0,0.00029464,2]
[313287243,1707088244650,-150.0,0.00029465,2]
[313287244,1707088244660,-150.0,0.00029469,2]
[313287245,1707088244670,-150.0,0.00029469,2]
[313287246,1707088244680,-150.0,0.00029471,2]
[313287247,1707088244689,-150.0,0.00029479,2]
[313287248,1707088244698,-150.0,0.0002948,2]
[313287249,1707088244707,-150.0,0.0002948,2]
[313287250,1707088244716,-150.0,0.00029482,2]
[313287251,1707088244726,-150.0,0.00029482,2]
[313287252,1707088244735,-150.0,0.00029485,2]
[313287253,1707088244744,-150.0,0.00029487,2]
[313287254,1707088244754,-57152.56436531,0.00029489,2]
[313287255,1707088244763,-150.0,0.00029489,2]
[313287256,1707088244773,-18098.20915038,0.0002949,2]
[313287257,1707088244782,-1498.43461182,0.0002949,2]
[313287258,1707088244791,-150.01,0.0002949,2]
[313287259,1707088244800,-430.27324405,0.0002949,2]
[313287260,1707088244809,-155.0,0.000295,3]
[313287261,1707088244818,-517.4945904,0.00029508,2]
[313287262,1707088244827,-4333.4187648,0.00029528,2]
[313287263,1707088244836,-1026.39533165,0.00029669,2]
[313287264,1707088244846,-2000.0,0.00029684,2]
[313287265,1707088244855,-200.0,0.00029684,2]
[313287266,1707088244864,-200.0,0.00029684,2]
[313287267,1707088244873,-705.50788492,0.00029691,2]
[313287268,1707088244882,-286.26046709,0.00029691,2]
[313287269,1707088244894,-656.26799496,0.00029691,2]
[313287270,1707088244903,-281.27567579,0.00029692,2]
[313287271,1707088244912,-2093.54970602,0.00029692,4]
[313287272,1707088244921,-360.0,0.00029726,2]
[313287273,1707088244931,-712.0,0.00029736,2]
[313287274,1707088244940,-800.0,0.00029764,2]
[313287275,1707088244949,-300.0,0.00029792,2]
[313287276,1707088244958,-168.22930971,0.00029794,2]
[313287277,1707088244968,-1173.07124028,0.00029795,2]
[313287278,1707088244977,-1135.32,0.00029834,2]
[313287279,1707088244986,-200.0,0.000299,3]
[313287280,1707088244995,-200.0,0.000299,3]
[313287281,1707088245004,-2000.0,0.00029981,2]
[313287282,1707088245015,-200.0,0.00029981,2]
[313287283,1707088245024,-200.0,0.00029981,2]
[313287284,1707088245158,-155.0,0.0003,2]
[313287285,1707088245169,-16596.48836932,0.0003,3]
[313287287,1707088245180,-5859.40530738,0.0003,4]
[313287289,1707088245190,-311.50520017,0.0003,2]
[313287290,1707088245200,-153.89,0.0003,2]
[313287291,1707088245210,-500.0,0.0003,2]
[313287292,1707088245221,-347.1,0.0003026,2]
[313287293,1707088245230,-800.0,0.00030273,2]
[313287295,1707088245240,-2000.0,0.00030281,2]
[313287298,1707088245250,-200.0,0.00030281,2]
[313287299,1707088245260,-152.45494241,0.00030475,7]
[313287300,1707088245271,-3935.36927603,0.0003052,2]
[313287301,1707088245281,-2000.0,0.00030583,2]
[313287302,1707088245291,-200.0,0.00030583,2]
[313287303,1707088245301,-150.0,0.00030642,2]
[313287304,1707088245314,-300.0,0.00030778,2]
[313287305,1707088245324,-800.0,0.00030781,2]
[313287306,1707088245334,-250.0,0.000308,2]
[313287307,1707088245344,-200.0,0.00030821,2]
[313287308,1707088245356,-257.70962994,0.00030822,2]
[313287309,1707088245366,-1500.0,0.00030987,2]
[313287310,1707088245375,-1254.51052629,0.00031,7]
[313287311,1707088245385,-1400.0,0.00031,3]
[313287312,1707088245394,-300.0,0.00031004,2]
[313287313,1707088245403,-666.39,0.0003103,2]
[313287314,1707088245412,-1500.0,0.00031049,2]
[313287315,1707088245421,-250.0,0.00031074,2]
[313287316,1707088245430,-150.0,0.00031271,2]
[313287318,1707088245440,-300.0,0.00031286,2]
[313287320,1707088245449,-200.0,0.0003129,3]
[313287321,1707088245458,-800.0,0.0003129,2]
[313287322,1707088245467,-151.09684366,0.00031293,2]
[313287323,1707088245476,-150.0,0.0003131,2]
[313287324,1707088245485,-205.0,0.00031311,15]
[313287325,1707088245493,-150.0,0.0003133,2]
[313287326,1707088245503,-150.0,0.00031331,2]
[313287327,1707088245514,-150.0,0.00031334,2]
[313287328,1707088245523,-150.0,0.00031356,2]
[313287329,1707088245534,-150.0,0.00031368,2]
[313287330,1707088245543,-155.0,0.00031384,4]
[313287331,1707088245552,-500.0,0.00031385,2]
[313287332,1707088245563,-501.6691,0.00031385,2]
[313287333,1707088245573,-1000.0,0.00031385,2]
[313287334,1707088245583,-271.4136,0.00031385,2]
[313287335,1707088245592,-152.45494241,0.00031387,7]
[313287336,1707088245603,-1500.0,0.00031398,2]
[313287337,1707088245612,-150.0,0.00031404,2]
[313287338,1707088245622,-1500.0,0.00031417,2]
[313287339,1707088245633,-4641.54082249,0.0003143,4]
[313287340,1707088245642,-150.0,0.00031432,2]
[313287341,1707088245652,-300.0,0.00031434,2]
[313287342,1707088245662,-150.0,0.0003144,2]
[313287343,1707088245672,-152.09529989,0.00031466,2]
[313287344,1707088245682,-150.0,0.00031472,2]
[313287345,1707088245691,-150.0,0.00031475,2]
[313287346,1707088245702,-300.0,0.00031475,2]
[313287347,1707088245711,-150.0,0.00031488,2]
[313287348,1707088245721,-150.0,0.00031521,2]
[313287349,1707088245730,-300.0,0.00031533,2]
[313287350,1707088245741,-7999.99,0.00031541,14]
[313287351,1707088245752,-533.90351792,0.00031541,4]
[313287352,1707088245761,-300.0,0.00031541,2]
[313287353,1707088245771,-300.0,0.00031541,2]
[313287355,1707088245780,-283.71906152,0.00031542,4]
[313287356,1707088245789,-200.0,0.00031543,2]
[313287357,1707088245798,-1970.77972657,0.00031543,2]
[313287358,1707088245808,-5637.40464828,0.00031543,2]
[313287359,1707088245817,-180.0,0.00031644,2]
[313287360,1707088245826,-157.1305501,0.00031721,4]
[313287361,1707088245835,-155.52675014,0.00031721,4]
[313287362,1707088245845,-174.43154278,0.00031721,4]
[313287363,1707088245854,-338.56847169,0.00031721,4]
[313287364,1707088245863,-234.71591204,0.00031721,4]
[313287365,1707088245872,-280.05887207,0.00031721,4]
[313287366,1707088245883,-5158.8468335,0.00031721,4]
[313287367,1707088245898,-188.88751877,0.00031721,4]
[313287368,1707088245908,-2627.38983297,0.00031721,2]
[313287369,1707088245918,-941.06976362,0.00031721,4]
[313287370,1707088245928,-158.67878115,0.00031721,4]
[313287371,1707088245938,-203.76527707,0.00031721,4]
[313287372,1707088245949,-157.91859783,0.00031721,4]
[313287373,1707088245960,-155.0,0.00031721,4]
[313287374,1707088245972,-247.34763938,0.00031721,4]
[313287375,1707088245985,-3338.37650623,0.00031721,4]
[313287376,1707088245996,-760.13396495,0.00031721,4]
[313287377,1707088246006,-155.0,0.00031721,4]
[313287378,1707088246016,-155.26565637,0.00031721,4]
[313287379,1707088246025,-1327.19600305,0.00031721,4]
[313287380,1707088246036,-362.66839239,0.00031721,4]